fUSD/lending_fUSD_20251110
["ID","MTS","AMOUNT","RATE_DAILY","PERIOD"]
[393523272,1762759840803,-18508.27036294,0.00034712,3]
[393523273,1762759840815,-1695.88201006,0.00034712,3]
[393523274,1762759840825,-475.9642287,0.00034712,3]
[393523275,1762759840836,-2230.00001,0.00034712,3]
[393523276,1762759840847,-10992.8686254,0.00034712,3]
[393523277,1762759840858,-14517.13673284,0.00034712,3]
[393523292,1762759843567,-237.972544,0.000339,31]
[393523293,1762759843577,-1000.0,0.00034066,30]
[393523294,1762759843586,-782.27,0.00034066,30]
[393523295,1762759843595,-237.972544,0.00034367,31]
[393523296,1762759843605,-237.972544,0.00034687,31]
[393523297,1762759843614,-237.972544,0.00034697,31]
[393523298,1762759843624,-12192.33514896,0.00034712,3]
[393523299,1762759843634,-151.0,0.00034713,31]
[393523300,1762759843643,-167.870444,0.00034713,31]
[393523301,1762759843653,-167.870444,0.00034713,31]
[393523302,1762759843666,-167.870444,0.00034713,31]
[393523303,1762759843675,-167.870448,0.00034713,31]
[393523304,1762759843684,-151.0,0.00034713,31]
[393523305,1762759843695,-831.742262,0.00034713,31]
[393523306,1762759843704,-151.0,0.00034713,31]
[393523307,1762759843714,-831.742262,0.00034713,31]
[393523308,1762759843723,-831.742262,0.00034713,31]
[393523309,1762759843734,-831.742262,0.00034713,31]
[393523310,1762759843743,-151.0,0.00034713,31]
[393523311,1762759843753,-237.972544,0.00034713,31]
[393523312,1762759843763,-500.0,0.0003472,120]
[393523313,1762759843774,-151.0,0.0003472,31]
[393523314,1762759843783,-151.0,0.0003472,31]
[393523315,1762759843792,-151.0,0.0003472,31]
[393523316,1762759843802,-151.0,0.0003472,31]
[393523317,1762759843811,-151.0,0.0003472,31]
[393523318,1762759843820,-312.385394,0.00034721,31]
[393523319,1762759843830,-312.385394,0.00034721,31]
[393523321,1762759843840,-202.59783814,0.00034721,31]
[393523323,1762759843859,-237.972544,0.000339,31]
[393523324,1762759843868,-109.78755586,0.00034721,31]
[393523325,1762759843878,-105.23990014,0.00034721,31]
[393523326,1762759843893,-60.15908986,0.00034721,31]
[393523327,1762759843903,-312.385394,0.00034721,31]
[393523328,1762759843912,-151.0,0.00034721,31]
[393523329,1762759843922,-155.381167,0.00034721,31]
[393523330,1762759843931,-152.675179,0.00034721,31]
[393523331,1762759843941,-193.374305,0.00034721,31]
[393523332,1762759843950,-193.374305,0.00034721,31]
[393523333,1762759843959,-193.374305,0.00034721,31]
[393523334,1762759843969,-193.374305,0.00034721,31]
[393523335,1762759843978,-20022.7382806,0.00034721,3]
[393523336,1762759843988,-20204.152373,0.00034721,3]
[393523337,1762759843998,-300.0,0.00034721,10]
[393523338,1762759844008,-666.0,0.00034721,10]
[393523339,1762759844019,-300.0,0.00034721,10]
[393523340,1762759844028,-666.0,0.00034721,10]
[393523341,1762759844038,-193.374305,0.00034722,31]
[393523342,1762759844048,-193.374305,0.00034722,31]
[393523343,1762759844058,-193.374305,0.00034722,31]
[393523344,1762759844067,-193.374305,0.00034722,31]
[393523345,1762759844076,-151.0,0.00034722,31]
[393523346,1762759844086,-151.0,0.00034722,31]
[393523347,1762759844095,-151.0,0.00034722,31]
[393523348,1762759844105,-173.307504,0.00034722,31]
[393523349,1762759844115,-175.910397,0.00034722,31]
[393523350,1762759844123,-151.0,0.00034722,31]
[393523351,1762759844134,-151.0,0.00034722,31]
[393523352,1762759844144,-151.0,0.00034722,31]
[393523353,1762759844154,-151.0,0.00034722,31]
[393523354,1762759844163,-151.0,0.00034722,31]
[393523355,1762759844173,-259.906988,0.00034722,31]
[393523356,1762759844182,-169.894068,0.00034722,31]
[393523357,1762759844191,-162.545614,0.00034722,31]
[393523358,1762759844200,-151.0,0.00034722,31]
[393523359,1762759844209,-162.545614,0.00034722,31]
[393523360,1762759844219,-162.545614,0.00034722,31]
[393523361,1762759844228,-162.545614,0.00034722,31]
[393523362,1762759844238,-151.0,0.00034722,31]
[393523363,1762759844247,-151.0,0.00034722,15]
[393523364,1762759844256,-100113.691403,0.00034722,3]
[393523365,1762759844266,-300.0,0.0003473,10]
[393523366,1762759844276,-666.0,0.0003473,10]
[393523367,1762759844285,-6874.9428103,0.00034731,2]
[393523368,1762759844295,-1596.67579016,0.00034731,30]
[393523369,1762759844304,-312.385394,0.00034731,31]
[393523370,1762759844314,-312.385394,0.00034731,31]
[393523371,1762759844324,-312.385394,0.00034731,31]
[393523372,1762759844333,-312.385394,0.00034731,31]
[393523373,1762759844343,-151.0,0.00034731,31]
[393523374,1762759844352,-209.692662,0.00034731,30]
[393523375,1762759844362,-151.0,0.00034731,31]
[393523376,1762759844372,-151.0,0.00034731,31]
[393523377,1762759844382,-258.131443,0.00034731,31]
[393523378,1762759844392,-461.30115043,0.00034731,3]
[393523379,1762759844402,-200.0,0.00034731,3]
[393523380,1762759844411,-200.0,0.00034731,3]
[393523381,1762759844421,-216.58378992,0.00034731,3]
[393523382,1762759844430,-200.0,0.00034731,3]
[393523383,1762759844439,-200.0,0.00034731,3]
[393523384,1762759844448,-208.40391773,0.00034731,3]
[393523385,1762759844458,-163.89204126,0.00034731,3]
[393523386,1762759844467,-300.0,0.00034731,10]
[393523387,1762759844476,-300.0,0.00034731,10]
[393523388,1762759844486,-666.0,0.00034731,10]
[393523389,1762759844496,-300.0,0.00034731,10]
[393523390,1762759844506,-671.49769143,0.00034731,10]
[393523391,1762759844515,-153.461511,0.00034732,31]
[393523392,1762759844526,-151.0,0.00034732,31]
[393523393,1762759844535,-151.0,0.00034732,31]
[393523394,1762759844545,-151.0,0.00034732,31]
[393523395,1762759844554,-151.0,0.00034732,31]
[393523396,1762759844563,-538.29,0.00034732,30]
[393523397,1762759844574,-312.385394,0.00034732,31]
[393523398,1762759844583,-312.385394,0.00034732,31]
[393523399,1762759844592,-312.385394,0.00034732,31]
[393523400,1762759844602,-312.385396,0.00034732,31]
[393523401,1762759844611,-151.0,0.00034732,31]
[393523402,1762759844620,-221.045345,0.00034732,31]
[393523403,1762759844629,-500.0,0.00034732,120]
[393523404,1762759844638,-193.374305,0.00034732,31]
[393523405,1762759844647,-193.374305,0.00034732,31]
[393523406,1762759844659,-193.374305,0.00034732,31]
[393523407,1762759844668,-193.374307,0.00034732,31]
[393523408,1762759844677,-151.0,0.00034732,31]
[393523409,1762759844686,-151.0,0.00034732,31]
[393523410,1762759844695,-237.368002,0.00034732,31]
[393523411,1762759844705,-151.0,0.00034732,31]
[393523412,1762759844714,-151.0,0.00034732,31]
[393523413,1762759844725,-183.852773,0.00034732,31]
[393523414,1762759844737,-151.0,0.00034732,31]
[393523415,1762759844747,-536.68633,0.00034732,2]
[393523416,1762759844756,-536.68633,0.00034732,2]
[393523417,1762759844766,-536.68633,0.00034732,2]
[393523418,1762759844776,-162.545614,0.00034732,31]
[393523419,1762759844786,-162.545614,0.00034732,31]
[393523420,1762759844796,-162.545614,0.00034732,31]
[393523421,1762759844806,-162.545621,0.00034732,31]
[393523422,1762759844815,-151.0,0.00034732,31]
[393523423,1762759844825,-20022.7382806,0.00034732,3]
[393523424,1762759844834,-1003.8604,0.00034741,2]
[393523425,1762759844844,-500.0,0.00034741,120]
[393523426,1762759844853,-1000.0,0.00034741,7]
[393523427,1762759844863,-300.0,0.00034741,10]
[393523428,1762759844872,-300.0,0.00034741,10]
[393523429,1762759844881,-423.7132011,0.00034741,10]
[393523430,1762759844891,-314.50635683,0.00034741,10]
[393523431,1762759844901,-151.0,0.00034742,31]
[393523432,1762759844912,-20204.152373,0.00034763,3]
[393523433,1762759844921,-20022.7382806,0.00034772,3]
[393523434,1762759844932,-20204.152373,0.00034772,3]
[393523435,1762759844941,-500.79263561,0.00034773,5]
[393523436,1762759844950,-502.25866043,0.00034773,5]
[393523437,1762759844960,-501.17569297,0.00034773,5]
[393523438,1762759844969,-172.85958203,0.00034773,5]
[393523439,1762759844978,-500.63427104,0.00034773,5]
[393523440,1762759844988,-500.0,0.00034773,5]
[393523441,1762759844997,-565.55842441,0.00034773,5]
[393523442,1762759845006,-162.27203613,0.00034773,5]
[393523443,1762759845016,-150.0,0.00034773,5]
[393523444,1762759845026,-300.0,0.00034782,10]
[393523445,1762759845035,-300.0,0.00034782,10]
[393523446,1762759845044,-150.0,0.00034782,20]
[393523447,1762759845054,-20022.7382806,0.00034783,3]
[393523448,1762759845064,-20204.152373,0.00034783,3]
[393523449,1762759845074,-150.0,0.00034785,2]
[393523450,1762759845083,-660.62,0.00034786,14]
[393523451,1762759845092,-300.0,0.00034792,10]
[393523452,1762759845103,-300.0,0.00034792,10]
[393523453,1762759845112,-40045.4765613,0.00034793,3]
[393523454,1762759845122,-20204.152373,0.00034793,3]
[393523455,1762759845132,-152.699517,0.00034793,31]
[393523456,1762759845141,-300.0,0.00034802,10]
[393523457,1762759845151,-300.0,0.00034802,10]
[393523458,1762759845160,-60068.2148419,0.00034803,3]
[393523459,1762759845170,-80816.6094919,0.00034803,3]
[393523460,1762759845179,-300.0,0.00034811,10]
[393523461,1762759845189,-300.0,0.00034812,10]
[393523462,1762759845198,-3131.2660112,0.00034813,2]
[393523463,1762759845209,-19506.218968,0.00034813,2]
[393523464,1762759845219,-199.32469595,0.00034817,15]
[393523465,1762759845228,-1164.18653123,0.00034841,2]
[393523466,1762759845237,-510.18200305,0.00034851,30]
[393523467,1762759845247,-500.0,0.00034851,30]
[393523468,1762759845257,-151.0,0.00034852,2]
[393523469,1762759845266,-754.39390821,0.00034852,2]
[393523470,1762759845276,-153.05192256,0.00034852,7]
[393523471,1762759845285,-1759.81851037,0.00034852,2]
[393523472,1762759845294,-628.14194702,0.00034859,3]
[393523473,1762759845335,-59.71924061,0.00034859,3]
[393523477,1762759846464,-237.972544,0.000339,31]
[393523478,1762759846474,-143.70322588,0.00034367,31]
[393523479,1762759846486,-94.26931812,0.00034367,31]
[393523480,1762759846496,-192.98068188,0.00034367,31]
[393523481,1762759846508,-44.99186212,0.00034367,31]
[393523482,1762759846518,-212.72753709,0.00034687,31]
[393523485,1762759873949,151.0,0.00026451,2]
[393523487,1762759891326,151.0,0.0002677,2]
[393523488,1762759908195,151.0,0.000271,2]
[393523490,1762759924591,151.0,0.00027609,2]
[393523491,1762759941799,151.0,0.00028175,2]
[393523492,1762759958178,151.0,0.00028069,2]
[393523495,1762760155673,690.9,0.00029882,2]
[393523496,1762760456377,-247.17417503,0.0003,5]
[393523497,1762760620309,-152.57216897,0.0003,2]
[393523498,1762760623326,-151.0,0.0003,2]
[393523499,1762760639276,167.74,0.00016647,2]
[393523500,1762760639304,167.74,0.00021978,2]
[393523501,1762760639517,167.74,0.00027309,2]
[393523502,1762760665874,-196.42783103,0.0003,2]
[393523503,1762760665896,-32.42315273,0.0003,2]
[393523504,1762760669922,-158.29684727,0.0003,2]
[393523507,1762760968347,-192.29293654,0.0003,2]
[393523520,1762761031535,-400.0,0.00032,2]
[393523521,1762761031544,-167.74,0.00032641,2]
[393523522,1762761031554,-1000.0,0.00032641,2]
[393523523,1762761031564,-200.0,0.00032641,2]
[393523524,1762761031574,-168.0,0.00032885,2]
[393523525,1762761031583,-4004.41,0.00032902,2]
[393523526,1762761031592,-500.0,0.00032973,2]
[393523527,1762761031602,-1600.0,0.00032977,3]
[393523528,1762761031612,-400.0,0.00032977,3]
[393523529,1762761031621,-301.0,0.00032977,3]
[393523530,1762761031630,-400.0,0.00032977,2]
[393523531,1762761031640,-4606.38908174,0.00032978,2]
[393523532,1762761031653,-4423.2,0.00032978,2]
[393523533,1762761031664,-1542.02411124,0.00032978,2]
[393523534,1762761031676,-48515.59680702,0.00032978,2]
[393523535,1762761031686,-1600.0,0.00032997,3]
[393523536,1762761031696,-182.0,0.00032998,2]
[393523537,1762761031705,-500.0,0.00032999,7]
[393523538,1762761031715,-500.0,0.00032999,7]
[393523539,1762761031724,-500.0,0.00032999,7]
[393523540,1762761031734,-500.0,0.00032999,7]
[393523541,1762761031743,-500.0,0.00032999,7]
[393523542,1762761031753,-500.0,0.00032999,7]
[393523543,1762761031763,-500.0,0.00032999,7]
[393523544,1762761031772,-500.0,0.00032999,7]
[393523545,1762761031782,-500.0,0.00032999,7]
[393523546,1762761031792,-500.0,0.00032999,7]
[393523547,1762761031803,-500.0,0.00032999,7]
[393523548,1762761031813,-500.0,0.00032999,7]
[393523549,1762761031823,-500.0,0.00032999,7]
[393523550,1762761031832,-500.0,0.00032999,7]
[393523552,1762761031842,-291.93250451,0.00032999,7]
[393523554,1762761031852,-500.0,0.00032999,7]
[393523555,1762761031862,-500.0,0.00032999,7]
[393523556,1762761031871,-500.0,0.00032999,7]
[393523557,1762761031880,-500.0,0.00032999,7]
[393523559,1762761031890,-500.0,0.00032999,7]
[393523560,1762761031899,-500.0,0.00032999,7]
[393523563,1762761031908,-500.0,0.00032999,7]
[393523566,1762761031917,-500.0,0.00032999,7]
[393523567,1762761031926,-250.0,0.00032999,7]
[393523568,1762761031935,-64729.0,0.00033,5]
[393523569,1762761031944,-195.0,0.00033,120]
[393523570,1762761031953,-500.0,0.00033172,2]
[393523571,1762761031963,-500.0,0.00033272,120]
[393523572,1762761031972,-500.0,0.00033272,120]
[393523573,1762761031981,-500.0,0.00033272,120]
[393523574,1762761031990,-500.0,0.00033272,7]
[393523576,1762761032000,-534.26307802,0.00033272,120]
[393523577,1762761032010,-500.0,0.00033272,30]
[393523578,1762761032023,-400.38,0.00033542,2]
[393523579,1762761032034,-5000.0,0.00033542,2]
[393523580,1762761032043,-206.64,0.00033614,2]
[393523581,1762761032053,-3176.0,0.00033624,2]
[393523582,1762761032063,-3176.0,0.00033631,7]
[393523583,1762761032073,-168.0,0.00033655,2]
[393523584,1762761032082,-594.38,0.0003388,2]
[393523585,1762761032092,-500.0,0.00033929,2]
[393523586,1762761032103,-168.0,0.00034114,2]
[393523587,1762761032112,-500.0,0.0003436,7]
[393523588,1762761032121,-528.13385018,0.0003436,7]
[393523589,1762761032131,-168.0,0.00034463,2]
[393523590,1762761032140,-1255.91437207,0.0003452,2]
[393523591,1762761032150,-172.47,0.00034549,2]
[393523592,1762761032159,-151.0,0.00034571,2]
[393523593,1762761032169,-151.0,0.00034571,2]
[393523594,1762761032179,-151.0,0.00034571,2]
[393523595,1762761032188,-151.0,0.00034571,2]
[393523596,1762761032197,-151.0,0.00034571,2]
[393523597,1762761032207,-151.0,0.00034571,2]
[393523598,1762761032216,-151.0,0.00034571,2]
[393523599,1762761032225,-217.76689676,0.00034571,2]
[393523600,1762761032235,-970.303,0.00034573,39]
[393523601,1762761032244,-1000.0,0.00034582,2]
[393523602,1762761032253,-2500.0,0.00034582,2]
[393523603,1762761032263,-893.73840764,0.00034588,2]
[393523604,1762761032272,-151.0,0.00034589,14]
[393523605,1762761032281,-5549.03433471,0.00034592,2]
[393523606,1762761032291,-548.0,0.00034651,2]
[393523607,1762761032301,-153.0,0.00034672,2]
[393523608,1762761032311,-153.0,0.00034672,2]
[393523609,1762761032320,-153.0,0.00034672,2]
[393523610,1762761032329,-153.0,0.00034672,2]
[393523611,1762761032339,-153.0,0.00034672,2]
[393523612,1762761032349,-153.0,0.00034672,2]
[393523613,1762761032359,-153.0,0.00034672,2]
[393523614,1762761032369,-153.0,0.00034672,2]
[393523615,1762761032379,-153.0,0.00034672,2]
[393523616,1762761032388,-153.0,0.00034672,2]
[393523617,1762761032398,-153.0,0.00034672,2]
[393523618,1762761032408,-500.0,0.00034673,5]
[393523619,1762761032418,-500.0,0.00034673,5]
[393523620,1762761032427,-500.0,0.00034673,5]
[393523621,1762761032437,-150.0,0.00034673,5]
[393523622,1762761032447,-161.24138237,0.00034673,2]
[393523623,1762761032456,-500.0,0.00034673,5]
[393523624,1762761032466,-500.0,0.00034673,5]
[393523625,1762761032476,-500.0,0.00034673,5]
[393523626,1762761032485,-500.0,0.00034673,5]
[393523627,1762761032495,-500.0,0.00034673,5]
[393523628,1762761032505,-500.0,0.00034673,5]
[393523629,1762761032515,-160.78433752,0.00034673,5]
[393523630,1762761032525,-249.0,0.00034674,2]
[393523631,1762761032534,-249.0,0.00034674,2]
[393523632,1762761032544,-249.0,0.00034674,2]
[393523633,1762761032554,-249.0,0.00034674,2]
[393523634,1762761032563,-249.0,0.00034674,2]
[393523635,1762761032573,-180.2496158,0.00034681,7]
[393523636,1762761032582,-208.78841128,0.00034681,7]
[393523637,1762761032591,-633.470451,0.00034681,7]
[393523638,1762761032601,-129454.958504,0.00034682,3]
[393523639,1762761032611,-1407.89000466,0.00034682,2]
[393523640,1762761032620,-153.0,0.00034685,2]
[393523641,1762761032630,-153.0,0.00034685,2]
[393523642,1762761032639,-153.0,0.00034685,2]
[393523643,1762761032649,-153.0,0.00034685,2]
[393523644,1762761032658,-153.0,0.00034685,2]
[393523645,1762761032667,-153.0,0.00034685,2]
[393523646,1762761032676,-153.0,0.00034685,2]
[393523647,1762761032685,-153.0,0.00034685,2]
[393523648,1762761032694,-153.0,0.00034685,2]
[393523649,1762761032704,-153.0,0.00034685,2]
[393523650,1762761032713,-153.0,0.00034685,2]
[393523651,1762761032722,-249.0,0.00034687,2]
[393523652,1762761032732,-249.0,0.00034687,2]
[393523653,1762761032742,-249.0,0.00034687,2]
[393523654,1762761032751,-249.0,0.00034687,2]
[393523655,1762761032760,-249.0,0.00034687,2]
[393523656,1762761032770,-1000.0,0.00034691,2]
[393523657,1762761032779,-633.76,0.00034691,14]
[393523658,1762761032789,-151.0,0.00034692,30]
[393523659,1762761032800,-151.0,0.00034692,31]
[393523660,1762761032810,-175.32100665,0.00034692,7]
[393523661,1762761032819,-151.0,0.00034692,31]
[393523662,1762761032829,-151.0,0.00034692,31]
[393523663,1762761032838,-126767.98953942,0.00034692,2]
[393523664,1762761033261,-19492.82810676,0.00034692,2]
[393523665,1762761033274,-20375.1990456,0.00034692,2]
[393523666,1762761033286,-1002.32590746,0.00034692,2]
[393523667,1762761033298,-5042.05890291,0.00034692,2]
[393523668,1762761037451,-208.34580271,0.00034592,15]
[393523669,1762761037461,-1621.7943022,0.00034692,2]
[393523670,1762761037590,-2473.65091241,0.00034692,2]
[393523753,1762761039687,-1062.10000012,0.00034692,2]
[393523754,1762761039698,-801.58080445,0.00034692,2]
[393523777,1762761046162,-5191.56524773,0.00034692,2]
[393523778,1762761046173,-354.0183042,0.00034692,2]
[393523782,1762761059161,151.0,0.00027617,2]
[393523784,1762761075487,151.0,0.00027612,2]
[393523785,1762761079117,153.06,0.00013699,2]
[393523786,1762761079527,153.06,0.00020187,2]
[393523787,1762761079729,153.06,0.00026676,2]
[393523789,1762761092040,151.0,0.00027618,2]
[393523790,1762761108639,151.0,0.00027665,2]
[393523791,1762761124866,151.0,0.00027737,2]
[393523792,1762761148148,166.66,0.00031009,30]
[393523794,1762761297232,455.0,0.000298,5]
[393523800,1762761583807,7444.89,0.00029882,2]
[393523801,1762761583829,2559.01,0.00029882,2]
[393523804,1762761914141,458.46,0.00018,2]
[393523805,1762762000141,-154.33445876,0.00029701,2]
[393523806,1762762000164,-123.93675392,0.00029799,2]
[393523807,1762762163533,-1200.0,0.00029799,2]
[393523808,1762762163557,-300.0,0.00029799,2]
[393523809,1762762163581,-300.0,0.00029799,2]
[393523810,1762762163603,-809.048806,0.000298,2]
[393523816,1762762231737,-300.0,0.00029799,2]
[393523817,1762762231747,-1200.0,0.00029799,2]
[393523818,1762762231758,-17026.951193,0.000298,2]
[393523819,1762762231767,-1400.65,0.00029901,2]
[393523820,1762762231777,-152.0,0.0003156,3]
[393523821,1762762231787,-166.66,0.00031661,30]
[393523822,1762762231801,-500.0,0.00031661,2]
[393523823,1762762231811,-800.0,0.00032123,3]
[393523824,1762762231820,-198.0,0.00032123,3]
[393523825,1762762231830,-1680.0,0.0003226,3]
[393523826,1762762231840,-166.66,0.00032314,30]
[393523827,1762762231849,-150.0,0.00032637,2]
[393523828,1762762231861,-641.32,0.00032639,14]
[393523829,1762762231870,-115.37221688,0.00032641,2]
[393523830,1762762231924,-34.62778312,0.00032641,2]
[393523831,1762762231934,-1000.0,0.00032641,2]
[393523832,1762762231943,-965.37221688,0.00032641,2]
[393523833,1762762231955,-155.96778312,0.00032641,2]
[393523834,1762762231966,-182.24,0.00032641,120]
[393523835,1762762231977,-5844.94,0.00032641,2]
[393523836,1762762231987,-250.0,0.00032641,2]
[393523837,1762762231998,-281.72554585,0.000327,5]
[393523838,1762762232010,-44.26506737,0.000327,5]
[393523839,1762762232020,-268.0,0.00032891,2]
[393523840,1762762232030,-641.32,0.00032913,14]
[393523841,1762762232040,-1224.48,0.00032915,30]
[393523842,1762762232050,-166.66,0.00032967,30]
[393523843,1762762232060,-153.06,0.00033165,2]
[393523844,1762762232070,-641.32,0.00033187,14]
[393523845,1762762232080,-150.0,0.00033246,2]
[393523846,1762762232090,-309.0,0.00033374,7]
[393523847,1762762232100,-641.32,0.00033461,14]
[393523848,1762762232111,-166.66,0.0003362,30]
[393523849,1762762232119,-641.32,0.00033735,14]
[393523852,1762762232127,-200.0,0.00033751,2]
[393523853,1762762232137,-200.0,0.00034,120]
[393523855,1762762232146,-641.37,0.00034009,14]
[393523857,1762762232155,-168.0,0.00034031,7]
[393523859,1762762232165,-168.0,0.00034045,2]
[393523861,1762762232175,-221.8861932,0.00034138,2]
[393523863,1762762232184,-2274.0,0.00034247,15]
[393523865,1762762232193,-894.01797964,0.00034259,2]
[393523867,1762762232203,-166.66,0.00034273,30]
[393523869,1762762232213,-221.8861932,0.00034326,2]
[393523871,1762762232223,-1996.00943431,0.00034349,5]
[393523874,1762762232232,-532.08082654,0.0003436,7]
[393523876,1762762232242,-222.64847114,0.00034381,2]
[393523877,1762762232252,-1996.00943431,0.00034383,5]
[393523880,1762762232261,-168.0,0.00034437,2]
[393523881,1762762232271,-154.33445876,0.00034459,2]
[393523884,1762762232280,-319.4449,0.00034472,2]
[393523885,1762762232290,-1655.2136,0.00034472,2]
[393523888,1762762232299,-279.9279,0.00034481,2]
[393523891,1762762232309,-7778.12491472,0.00034482,2]
[393523894,1762762232319,-2500.0,0.00034482,2]
[393523896,1762762232328,-6571.80780428,0.00034483,2]
[393523899,1762762232338,-231.57010526,0.00034483,15]
[393523900,1762762232347,-776.242,0.00034488,39]
[393523903,1762762232360,-153.0,0.0003456,2]
[393523905,1762762232370,-153.0,0.0003456,2]
[393523907,1762762232383,-153.0,0.0003456,2]
[393523909,1762762232393,-153.0,0.0003456,2]
[393523911,1762762232403,-153.0,0.0003456,2]
[393523913,1762762232414,-153.0,0.0003456,2]
[393523915,1762762232425,-153.0,0.0003456,2]
[393523917,1762762232434,-153.0,0.00034561,2]
[393523919,1762762232444,-153.0,0.00034561,2]
[393523921,1762762232455,-153.0,0.00034561,2]
[393523923,1762762232465,-153.0,0.00034561,2]
[393523925,1762762232475,-153.0,0.00034561,2]
[393523927,1762762232485,-151.0,0.00034561,2]
[393523929,1762762232494,-151.0,0.00034561,2]
[393523931,1762762232503,-151.0,0.00034561,2]
[393523933,1762762232513,-151.0,0.00034561,2]
[393523935,1762762232523,-151.0,0.00034561,2]
[393523936,1762762232533,-151.0,0.00034561,2]
[393523937,1762762232543,-151.0,0.00034561,2]
[393523938,1762762232552,-151.0,0.00034561,2]
[393523939,1762762232562,-151.0,0.00034561,2]
[393523940,1762762232571,-151.0,0.00034561,2]
[393523941,1762762232580,-151.0,0.00034561,2]
[393523942,1762762232590,-151.0,0.00034561,2]
[393523943,1762762232599,-151.0,0.00034561,2]
[393523944,1762762232609,-151.0,0.00034561,2]
[393523945,1762762232619,-151.0,0.00034561,2]
[393523946,1762762232629,-151.0,0.00034561,2]
[393523947,1762762232638,-151.0,0.00034561,2]
[393523948,1762762232648,-151.0,0.00034561,2]
[393523949,1762762232659,-151.0,0.00034561,2]
[393523950,1762762232669,-151.0,0.00034561,2]
[393523951,1762762232679,-151.0,0.00034561,2]
[393523952,1762762232689,-151.0,0.00034561,2]
[393523953,1762762232699,-151.0,0.00034561,2]
[393523954,1762762232709,-151.0,0.00034561,2]
[393523955,1762762232719,-151.0,0.00034561,2]
[393523956,1762762232728,-151.0,0.00034561,2]
[393523957,1762762232738,-151.0,0.00034561,2]
[393523958,1762762232752,-151.0,0.00034561,2]
[393523959,1762762232762,-151.0,0.00034561,2]
[393523960,1762762232772,-151.0,0.00034561,2]
[393523961,1762762232782,-154.69945868,0.00034561,2]
[393523962,1762762232792,-151.0,0.00034561,2]
[393523963,1762762232802,-151.0,0.00034561,2]
[393523964,1762762232812,-151.0,0.00034561,2]
[393523965,1762762232823,-151.0,0.00034561,2]
[393523966,1762762232832,-151.0,0.00034561,2]
[393523967,1762762232843,-151.0,0.00034569,14]
[393523968,1762762232853,-616.33671859,0.00034571,7]
[393523969,1762762232863,-136050.49146977,0.00034572,3]
[393523970,1762762232877,-9460.80811623,0.00034572,3]
[393523971,1762762232886,-153.0,0.00034572,2]
[393523972,1762762232896,-153.0,0.00034572,2]
[393523973,1762762232906,-153.0,0.00034572,2]
[393523974,1762762232915,-153.0,0.00034572,2]
[393523975,1762762232925,-153.0,0.00034572,2]
[393523976,1762762232934,-153.0,0.00034572,2]
[393523977,1762762232944,-153.0,0.00034572,2]
[393523978,1762762232953,-154.0,0.00034574,2]
[393523979,1762762232963,-154.0,0.00034574,2]
[393523980,1762762232973,-154.0,0.00034574,2]
[393523981,1762762232983,-154.0,0.00034574,2]
[393523982,1762762232992,-154.0,0.00034574,2]
[393523983,1762762233002,-500.0,0.00034581,120]
[393523984,1762762233012,-500.0,0.00034581,120]
[393523985,1762762233021,-500.0,0.00034581,7]